bitfinex-derivatives/quotes_ETHF0:USTF0_20250804
["timestamp","ask_amount","ask_price","bid_price","bid_amount"]
[1754323103347,20.56199,3650.0,3649.9,1.8576]
[1754323103559,1.82375,3649.6,3649.5,3.5262]
[1754323103846,20.76975,3649.6,3649.5,3.5262]
[1754323104246,20.82675,3649.6,3649.5,3.5262]
[1754323104448,1.82375,3649.6,3649.5,5.0654]
[1754323104952,20.76875,3649.6,3649.5,5.0654]
[1754323105851,20.76875,3649.6,3649.5,3.5262]
[1754323106149,20.82575,3649.6,3649.5,3.5262]
[1754323106444,20.76875,3649.6,3649.5,3.2078]
[1754323106651,20.76875,3649.6,3649.5,4.6148]
[1754323106845,20.82575,3649.6,3649.5,3.2078]
[1754323107051,20.76875,3649.6,3649.5,5.0654]
[1754323107350,20.82575,3649.6,3649.5,3.2078]
[1754323107750,20.82575,3649.6,3649.5,3.5262]
[1754323107953,20.76875,3649.6,3649.5,3.5262]
[1754323108454,20.82575,3649.6,3649.5,3.5262]
[1754323108850,20.82575,3649.6,3649.5,3.2078]
[1754323109055,1.82382,3649.2,3649.1,5.0654]
[1754323109255,20.76882,3649.2,3649.1,5.0654]
[1754323110354,20.2208,3649.2,3649.1,5.0654]
[1754323111059,22.2208,3649.2,3649.1,5.0654]
[1754323112953,22.2208,3649.2,3649.1,0.3184]
[1754323113158,1.82387,3648.8,3648.7,4.078]
[1754323113359,1.82387,3648.8,3648.7,5.0654]
[1754323113360,20.56017,3648.8,3648.7,5.0654]
[1754323113659,20.76787,3648.8,3648.7,5.0654]
[1754323114250,20.2198,3648.8,3648.7,5.0654]
[1754323114454,20.0121,3648.8,3648.7,5.0654]
[1754323114657,19.5602,3648.8,3648.7,5.0654]
[1754323115157,20.2208,3648.8,3648.7,5.0654]
[1754323115357,20.2208,3648.8,3648.7,4.6148]
[1754323115760,20.2208,3648.8,3648.7,4.0637]
[1754323116263,20.2208,3648.8,3648.7,4.2874]
[1754323116462,20.2198,3648.8,3648.7,5.0654]
[1754323118964,18.945,3648.8,3648.7,3.969]
[1754323119465,18.945,3648.8,3648.7,4.738]
[1754323119665,18.945,3648.8,3648.7,5.0654]
[1754323120365,19.9946,3648.8,3648.7,5.0654]
[1754323120865,20.1934,3648.8,3648.7,4.2874]
[1754323121067,20.1934,3648.8,3648.7,3.2078]
[1754323121265,0.585,3648.3,3648.2,1.9038]
[1754323121465,20.70935,3648.3,3648.2,2.3464]
[1754323121666,20.51055,3648.3,3648.2,2.3464]
[1754323121864,20.51055,3648.3,3648.2,2.6678]
[1754323122066,20.07715,3648.3,3648.2,2.6678]
[1754323122266,0.54814,3648.4,3648.2,3.21595]
[1754323122461,0.83226,3648.9,3648.8,1.8678]
[1754323122667,20.70926,3648.9,3648.8,1.4252]
[1754323122866,20.70926,3648.9,3648.8,1.8678]
[1754323123471,20.70926,3648.9,3648.8,0.3214]
[1754323123774,1.13313,3648.4,3648.3,1.5464]
[1754323123966,19.49213,3648.4,3648.3,1.5464]
[1754323124167,0.54811,3648.6,3648.5,0.7816]
[1754323124373,19.49211,3648.6,3648.5,4.7542]
[1754323124671,19.49211,3648.6,3648.5,5.0756]
[1754323125366,20.51051,3648.6,3648.5,5.0756]
[1754323125567,20.70931,3648.6,3648.5,5.0756]
[1754323126260,20.51051,3648.6,3648.5,4.074]
[1754323126467,20.70931,3648.6,3648.5,5.0756]
[1754323129169,1.48951,3648.6,3648.5,5.0756]
[1754323129374,19.49011,3648.6,3648.5,5.0756]
[1754323129872,20.70731,3648.6,3648.5,5.0756]
[1754323130277,20.70731,3648.6,3648.5,4.633]
[1754323130770,1.13315,3648.3,3648.2,0.8]
[1754323130964,20.75545,3648.3,3648.2,0.8]
[1754323131275,21.60190346,3648.3,3648.2,0.8]
[1754323132472,21.55380346,3648.3,3648.2,2.6678]
[1754323132665,2.61180346,3648.3,3648.2,2.6678]
[1754323132870,21.55280346,3648.3,3648.2,2.6678]
[1754323133572,21.55243265,3648.3,3648.2,2.6678]
[1754323133767,2.61143265,3648.3,3648.2,2.6678]
[1754323133972,21.55443265,3648.3,3648.2,1.3529]
[1754323134270,21.60253265,3648.3,3648.2,1.1214]
[1754323134472,21.60253265,3648.3,3648.2,0.8]
[1754323135170,19.6596,3648.3,3648.2,2.6678]
[1754323136078,20.1592,3648.3,3648.2,2.6678]
[1754323136273,1.26569,3648.7,3648.6,1.8678]
[1754323136476,21.35543912,3648.7,3648.6,1.8678]
[1754323136682,21.55423912,3648.7,3648.6,1.8678]
[1754323137772,1.39403912,3648.7,3648.6,1.8678]
[1754323137973,18.941,3648.7,3648.6,1.8678]
[1754323138973,39.462,3648.8,3648.7,1.103]
[1754323139174,40.30837572,3648.8,3648.7,1.8678]
[1754323139571,0.84637572,3648.8,3648.7,1.8678]
[1754323139778,18.941,3648.8,3648.7,1.8678]
[1754323140473,0.4334,3649.1,3649.0,1.8678]
[1754323140679,19.3734,3649.1,3649.0,1.8678]
[1754323140883,20.50441285,3649.1,3649.0,1.8678]
[1754323141180,21.00401285,3649.1,3649.0,1.8678]
[1754323141568,21.00401285,3649.1,3649.0,1.4252]
[1754323142769,21.00401285,3649.1,3649.0,0.8662]
[1754323143076,21.00401285,3649.1,3649.0,0.3214]
[1754323143584,0.84681285,3649.1,3649.0,1.8678]
[1754323143882,18.938,3649.1,3649.0,1.8678]
[1754323144278,39.467,3649.4,3649.0,1.31284]
[1754323144581,0.54802,3649.2,3649.1,1.8678]
[1754323144876,1.39557512,3649.2,3649.1,1.8678]
[1754323145178,19.62360564,3649.2,3649.1,1.8678]
[1754323145380,19.62359498,3649.2,3649.1,1.8678]
[1754323146283,19.48502,3649.2,3649.1,1.8678]
[1754323147381,19.91842,3649.2,3649.1,1.8678]
[1754323147984,0.98142,3649.2,3649.1,1.8678]
[1754323148186,19.91742,3649.2,3649.1,1.8678]
[1754323148689,20.70122,3649.2,3649.1,1.8678]
[1754323148982,0.54804,3649.1,3648.9,3.2078]
[1754323149280,20.1522,3649.0,3648.9,4.0997]
[1754323149483,20.1522,3649.0,3648.9,4.633]
[1754323149684,20.1522,3649.0,3648.9,5.0756]
[1754323150576,19.9534,3649.0,3648.9,5.0756]
[1754323150782,20.1403,3649.0,3648.9,4.633]
[1754323151687,20.1393,3649.0,3648.9,4.633]
[1754323152084,20.1383,3649.0,3648.9,4.633]
[1754323152281,20.1383,3649.0,3648.9,3.5292]
[1754323152477,19.2172,3649.0,3648.9,5.0265]
[1754323152877,0.2842,3649.0,3648.9,5.0265]
[1754323153181,0.84253819,3649.6,3649.5,1.0681]
[1754323153385,0.84253819,3649.6,3649.5,5.0193]
[1754323153575,0.54791,3649.9,3649.5,5.0193]
[1754323153576,0.70868559,3649.9,3649.8,0.54792]
[1754323153782,18.932,3649.9,3649.8,0.7539]
[1754323153980,19.64068559,3649.9,3649.8,0.7539]
[1754323154383,20.39938559,3649.9,3649.8,1.8115]
[1754323154584,18.932,3649.9,3649.8,1.8115]
[1754323156587,20.1527,3649.9,3649.8,1.8115]
[1754323157290,20.1507,3649.9,3649.8,1.8115]
[1754323157884,20.1507,3649.9,3649.8,1.3858]
[1754323158591,20.1507,3649.9,3649.8,1.8115]
[1754323160891,20.1869,3649.9,3649.8,0.3142]
[1754323161390,21.2454,3649.9,3649.5,3.2078]
[1754323161593,1.76865,3649.6,3649.5,0.3142]
[1754323161892,20.69465,3649.6,3649.5,1.8115]
[1754323162092,1.76865,3649.6,3649.5,1.8115]
[1754323162296,20.69465,3649.6,3649.5,1.8115]
[1754323162588,0.86025,3649.6,3649.5,1.8115]
[1754323162795,19.47395,3649.6,3649.5,5.0193]
[1754323163097,0.54793,3649.8,3649.7,0.7539]
[1754323163297,19.47293,3649.8,3649.7,1.8115]
[1754323164195,18.925,3649.8,3649.7,1.8115]
[1754323164996,20.1457,3649.8,3649.7,1.8115]
[1754323165384,19.9588,3649.8,3649.7,1.8115]
[1754323165786,19.4545,3649.8,3649.7,1.8115]
[1754323166194,0.54794,3649.7,3649.6,0.3142]
[1754323166491,20.50574,3649.7,3649.6,1.8115]
[1754323166692,20.69264,3649.7,3649.6,1.8115]
[1754323168095,20.44784,3649.7,3649.6,1.3858]
[1754323168296,19.78424,3649.7,3649.6,1.8115]
[1754323168792,20.67424,3649.7,3649.6,1.3858]
[1754323169300,20.67424,3649.7,3649.6,1.8115]
[1754323171100,20.67424,3649.7,3649.6,1.3858]
[1754323171895,20.67424,3649.7,3649.6,1.8115]
[1754323172792,20.67424,3649.7,3649.6,1.3858]
[1754323173192,20.67424,3649.7,3649.6,1.8115]
[1754323173699,20.27724,3649.7,3649.6,1.2796]
[1754323173899,20.67424,3649.7,3649.6,1.8115]
[1754323174797,20.27724,3649.7,3649.6,1.8115]
[1754323175094,20.23064,3649.7,3649.6,1.8115]
[1754323175689,20.22464,3649.7,3649.6,1.8115]
[1754323175994,0.54794,3649.7,3649.6,1.8115]
[1754323176190,0.54793,3649.8,3649.7,1.8115]
[1754323176402,19.46493,3649.8,3649.7,1.8115]
[1754323176797,19.91133,3649.8,3649.7,1.8115]
[1754323177296,19.46493,3649.8,3649.7,1.8115]
[1754323177493,0.99433,3649.8,3649.7,1.8115]
[1754323177703,19.46493,3649.8,3649.7,1.8115]
[1754323178505,1.75023,3649.8,3649.7,1.8115]
[1754323178800,20.66623,3649.8,3649.7,0.3142]
[1754323179000,20.66623,3649.8,3649.7,0.6319]
[1754323179398,21.37526311,3649.8,3649.7,0.8595]
[1754323179599,21.37426311,3649.8,3649.7,0.8595]
[1754323179802,21.37426311,3649.8,3649.7,1.8115]
[1754323180104,20.66523,3649.8,3649.7,1.8115]
[1754323180402,19.46293,3649.8,3649.7,1.8115]
[1754323180701,19.90733,3649.8,3649.7,1.8115]
[1754323180907,20.62163,3649.8,3649.7,0.3142]
[1754323181092,21.46496709,3649.8,3649.7,0.3142]
[1754323181297,21.46502,3649.8,3649.7,1.8426]
[1754323181699,21.28982,3649.8,3649.7,1.8426]
[1754323181904,21.46502,3649.8,3649.7,0.8599]
[1754323182208,21.46502,3649.8,3649.7,1.8426]
[1754323182705,21.46402,3649.8,3649.7,1.8426]
[1754323183099,21.46402,3649.8,3649.7,0.3142]
[1754323183305,21.46402,3649.8,3649.7,0.5322]
[1754323183506,21.46402,3649.8,3649.7,0.8599]
[1754323184704,21.46302,3649.8,3649.7,1.8426]
[1754323184901,2.55002,3649.8,3649.7,1.8426]
[1754323185102,21.46302,3649.8,3649.7,1.8426]
[1754323185812,21.46302,3649.8,3649.7,1.3823]
[1754323187002,21.46302,3649.8,3649.7,0.8599]
[1754323187201,21.46302,3649.8,3649.7,1.3823]
[1754323187409,21.46302,3649.8,3649.7,1.8426]
[1754323188205,1.84070688,3649.8,3649.7,1.8426]
[1754323188410,21.4618464,3649.8,3649.7,1.8426]
[1754323190409,1.08705,3649.6,3649.5,3.5252]
[1754323190714,21.4598664,3649.6,3649.5,3.7432]
[1754323190915,21.4598664,3649.6,3649.5,4.0709]
[1754323191119,21.4843664,3649.6,3649.5,0.3174]
[1754323191414,1.70673,3649.1,3649.0,1.5284]
[1754323191611,19.8925,3649.1,3649.0,1.5284]
[1754323191811,6.00023455,3649.9,3649.3,0.4603]
[1754323192004,0.54797,3649.5,3649.4,1.8458]
[1754323192208,20.16723723,3649.5,3649.4,1.8458]
[1754323192409,20.30143025,3649.5,3649.4,1.8458]
[1754323193212,21.24583025,3649.5,3649.4,1.8458]
[1754323193413,21.28493025,3649.5,3649.4,1.8458]
[1754323193616,21.46013025,3649.5,3649.3,3.2078]
[1754323193815,20.01957,3649.5,3649.4,0.3174]
[1754323194016,20.8649993,3649.5,3649.4,0.3174]
[1754323194417,21.4845993,3649.5,3649.4,0.3174]
[1754323194814,21.48443872,3649.5,3649.4,0.3174]
[1754323196513,0.54801,3649.2,3649.1,0.3277]
[1754323196715,19.99411,3649.2,3649.1,0.6451]
[1754323196909,21.45897872,3649.2,3649.1,1.8458]
[1754323197115,21.14957021,3649.2,3649.1,1.8458]
[1754323197619,20.46257021,3649.2,3649.1,1.8458]
[1754323198214,20.90697021,3649.2,3649.1,1.8458]
[1754323198417,20.61271,3649.2,3649.1,1.8458]
[1754323199717,20.61171,3649.2,3649.1,1.8458]
[1754323200421,20.61171,3649.2,3649.1,1.5284]
[1754323200920,0.54801,3649.2,3649.1,1.2007]
[1754323201123,0.84476146,3649.4,3649.3,0.5441]
[1754323201416,0.7106541,3649.4,3649.3,1.0795]
[1754323201622,0.7497541,3649.4,3649.3,0.218]
[1754323201824,0.9522541,3649.4,3649.3,0.5354]
[1754323202224,0.13410736,3649.6,3649.3,0.218]
[1754323202423,0.13410736,3649.8,3649.3,0.218]
[1754323202723,0.13410736,3649.7,3649.3,0.218]
[1754323202919,0.13410736,3649.8,3649.3,0.218]
[1754323203119,0.13410736,3649.8,3649.6,3.4258]
[1754323203319,0.13410736,3649.7,3649.6,3.4258]
[1754323203626,0.8455,3649.3,3649.2,3.4258]
[1754323203825,19.9901,3649.3,3649.2,3.4258]
[1754323204125,19.451,3649.3,3649.2,3.4258]
[1754323204521,18.903,3649.3,3649.2,3.4258]
[1754323204921,0.54799,3649.4,3649.2,3.4258]
[1754323205120,18.903,3649.3,3649.2,3.4258]
[1754323205820,19.4421,3649.3,3649.2,3.4258]
[1754323206219,0.54799,3649.4,3649.2,3.4258]
[1754323206921,0.54799,3649.4,3649.2,3.9738]
[1754323207128,0.13409966,3649.7,3649.6,0.218]
[1754323207324,19.44994,3649.7,3649.6,3.4258]
[1754323207527,19.58403966,3649.7,3649.6,3.4258]
[1754323207829,0.54793,3649.8,3649.6,3.4258]
[1754323208725,1.36957,3650.5,3650.2,0.218]
[1754323208923,18.901,3650.4,3650.2,0.218]
[1754323209227,0.54785,3650.3,3650.2,0.218]
[1754323209526,19.44885,3650.3,3650.2,0.218]
[1754323210126,39.457,3651.0,3650.2,0.218]
[1754323210127,0.54784,3650.4,3650.2,0.76585]
[1754323210325,0.54784,3650.4,3650.3,3.4265]
[1754323210521,39.457,3651.0,3650.8,0.2187]
[1754323210726,1.25946,3650.9,3650.8,0.2187]
[1754323210930,20.15746,3650.9,3650.8,0.2187]
[1754323211330,0.83416,3650.9,3650.8,0.2187]
[1754323211631,19.44576,3650.9,3650.8,0.2187]
[1754323211832,20.15746,3650.9,3650.8,0.2187]
[1754323212432,1.9694222,3650.9,3650.8,0.2187]
[1754323212627,1.2577222,3650.9,3650.8,0.2187]
[1754323212931,20.1557222,3650.9,3650.8,0.2187]
[1754323213833,0.7099622,3650.9,3650.8,0.2187]
[1754323214031,0.54777,3650.8,3650.7,3.2078]
[1754323214233,19.44277,3650.8,3650.7,3.4265]
[1754323214433,0.54777,3650.8,3650.7,3.4265]
[1754323215031,19.44277,3650.8,3650.7,3.4265]
[1754323215330,20.15447,3650.8,3650.7,3.4265]
[1754323216533,19.72917,3650.8,3650.7,3.4265]
[1754323216736,0.8,3651.3,3651.2,0.2187]
[1754323217034,20.9534,3651.3,3651.2,3.4265]
[1754323217630,2.0594,3651.3,3651.2,3.2078]
[1754323217831,0.7117,3650.8,3650.7,3.4265]
[1754323218128,20.15147,3650.8,3650.7,3.2078]
[1754323218332,20.15147,3650.8,3650.7,3.4265]
[1754323218633,1.25947,3650.8,3650.7,3.4265]
[1754323218832,2.0594,3651.3,3651.2,0.2187]
[1754323219032,2.0594,3651.3,3651.2,3.4265]
[1754323220230,2.0594,3651.3,3650.8,3.2078]
[1754323220231,0.54777,3650.9,3650.8,3.2078]
[1754323220531,1.25947,3650.9,3650.8,3.4265]
[1754323221326,1.25947,3650.9,3650.8,3.2078]
[1754323221532,0.7117,3650.5,3650.4,3.4265]
[1754323221831,20.14952,3650.5,3650.4,3.2078]
[1754323222034,20.14952,3650.5,3650.4,3.4265]
[1754323222228,0.7117,3650.5,3650.4,3.4265]
[1754323222428,19.6017,3650.5,3650.4,3.4265]
[1754323222835,19.6017,3650.5,3650.4,3.2078]
[1754323223333,1.25958,3650.1,3650.0,3.2078]
[1754323223527,0.7117,3649.7,3649.6,3.2078]
[1754323223728,1.25969,3649.4,3649.3,0.2187]
[1754323223924,20.14769,3649.4,3649.3,0.2187]
[1754323225231,19.43599,3649.4,3649.3,0.2187]
[1754323225432,19.72239,3649.4,3649.3,0.2187]
[1754323225631,19.43599,3649.4,3649.3,0.2187]
[1754323225831,0.54799,3649.4,3649.3,0.2187]
[1754323226427,19.43699,3649.4,3649.3,0.2187]
[1754323226631,0.4984,3649.3,3649.2,2.63983]
[1754323226834,0.7117,3649.3,3649.2,2.63983]
[1754323227233,1.25976,3648.9,3648.8,3.4265]
[1754323227540,20.14876,3648.9,3648.8,3.4265]
[1754323228830,20.14876,3648.9,3648.8,3.2078]
[1754323229339,20.14876,3648.9,3648.8,3.4265]
[1754323229539,19.72446,3648.9,3648.8,3.4265]
[1754323229934,19.93646,3648.9,3648.8,3.4265]
[1754323230134,1.04646,3648.9,3648.8,3.4265]
[1754323230337,0.54804,3649.1,3649.0,0.2187]
[1754323230538,1.36985,3649.7,3649.1,0.76673]
[1754323230539,0.54802,3649.2,3649.1,0.76673]
[1754323230739,19.43702,3649.2,3649.1,3.97453]
[1754323231044,18.889,3649.2,3649.1,3.97453]
[1754323231235,0.54796,3649.6,3649.5,0.2187]
[1754323231538,1.25966,3649.6,3649.5,3.4265]
[1754323231736,0.54795,3649.7,3649.5,3.4265]
[1754323231940,3.2078,3650.2,3649.8,0.2187]
[1754323232136,19.43791,3649.9,3649.8,0.2187]
[1754323232339,0.54788,3650.1,3649.9,0.54791]
[1754323232643,0.54788,3650.1,3649.5,4.57771]
[1754323232644,0.54786,3650.3,3650.1,0.2187]
[1754323232942,18.89,3650.2,3650.1,0.2187]
[1754323233243,19.3884,3650.2,3650.1,0.2187]
[1754323233541,19.6017,3650.2,3650.1,0.2187]
[1754323234137,20.0285,3650.2,3650.1,1.7935]
[1754323234338,20.3382,3650.2,3650.1,1.7935]
[1754323234538,20.0285,3650.2,3650.1,1.7935]
[1754323234743,0.4997,3650.2,3650.1,1.7935]
[1754323234945,19.1744,3650.2,3650.1,1.7935]
[1754323235243,1.25953,3650.5,3650.4,1.7935]
[1754323235441,20.57433,3650.5,3650.4,5.0013]
[1754323235638,20.88403,3650.5,3650.4,5.0013]
[1754323236244,21.18893,3650.5,3650.4,5.0013]
[1754323236540,0.54783,3650.5,3650.4,5.0013]
[1754323236746,0.13707173,3651.0,3650.6,1.3394]
[1754323236943,1.47298,3650.8,3650.7,0.7084]
[1754323237248,1.8741,3650.6,3650.5,0.423]
[1754323237540,20.7611,3650.6,3650.5,0.7387]
[1754323237738,21.1879,3650.6,3650.5,1.0241]
[1754323237938,21.1879,3650.6,3650.5,1.7935]
[1754323238247,1.7531,3650.5,3650.4,3.2078]
[1754323238449,1.4434,3650.5,3650.4,4.686]
[1754323238748,20.3342,3650.5,3650.4,5.0013]
[1754323238942,20.0245,3650.5,3650.4,3.4121]
[1754323239143,1.7531,3650.5,3650.4,3.4121]
[1754323239338,20.6391,3650.5,3650.4,3.4121]
[1754323239543,20.6391,3650.5,3650.4,3.9465]
[1754323239846,20.6391,3650.5,3650.4,0.7387]
[1754323240245,20.6391,3650.5,3650.4,1.3418]
[1754323240448,20.6391,3650.5,3650.4,1.7734]
[1754323240644,1.7531,3650.5,3650.4,1.7734]
[1754323240845,0.4984,3650.5,3650.4,4.9812]
[1754323241159,19.6115,3650.5,3650.4,4.9812]
[1754323241343,20.3738,3650.5,3650.4,4.9812]
[1754323241647,20.6908,3650.5,3650.4,4.2319]
[1754323242645,1.8058,3650.5,3650.4,4.5496]
[1754323242948,2.36096,3650.2,3650.1,1.3561]
[1754323243151,1.8131,3650.1,3650.0,3.2078]
[1754323243746,2.36104,3649.7,3649.6,3.2078]
[1754323243955,21.24504,3649.7,3649.6,3.427]
[1754323244252,21.24504,3649.7,3649.6,4.5639]
[1754323244750,19.6178,3649.7,3649.6,4.9955]
[1754323244948,0.2937,3649.7,3649.6,4.9955]
[1754323245252,18.884,3649.7,3649.6,4.9955]
[1754323245749,0.54793,3649.8,3649.7,0.54794]
[1754323245947,19.43193,3649.8,3649.7,1.7877]
[1754323246139,19.94593,3649.8,3649.7,1.7877]
[1754323246344,20.39573,3649.8,3649.7,1.7877]
[1754323246940,20.92803,3649.8,3649.7,1.7877]
[1754323247145,1.8131,3649.7,3649.6,3.2078]
[1754323247345,1.4961,3649.7,3649.6,3.9303]
[1754323247652,19.43193,3649.8,3649.6,5.22754]
[1754323247850,19.43193,3649.8,3649.7,1.7877]
[1754323248148,19.72563,3649.8,3649.7,1.7877]
[1754323248349,1.73153,3649.8,3649.7,1.7877]
[1754323248554,20.61553,3649.8,3649.7,1.7877]
[1754323248949,20.0676,3649.8,3649.7,1.7877]
[1754323249149,19.1777,3649.8,3649.7,1.7877]
[1754323249350,1.51171,3649.9,3649.8,1.7877]
[1754323249650,20.61451,3649.9,3649.8,1.7877]
[1754323249850,20.92701,3649.9,3649.8,1.7877]
[1754323250552,1.1836,3649.9,3649.8,1.7877]
[1754323250751,0.2937,3649.9,3649.8,1.7877]
[1754323250956,19.1767,3649.9,3649.8,1.7877]
[1754323251349,0.2937,3650.1,3650.0,1.7877]
[1754323251550,0.84155,3650.3,3650.2,0.7225]
[1754323251860,19.94485,3650.3,3650.2,1.7877]
[1754323252044,0.9638,3650.3,3650.2,1.7877]
[1754323252347,20.0666,3650.3,3650.2,1.7877]
[1754323252751,19.6168,3650.3,3650.2,1.7877]
[1754323252947,20.3791,3650.3,3650.2,1.7877]
[1754323253152,20.3781,3650.3,3650.2,1.7877]
[1754323253755,20.6951,3650.3,3650.2,1.7877]
[1754323254057,1.8131,3650.1,3650.0,3.2078]
[1754323254448,1.8131,3650.1,3650.0,3.6419]
[1754323254651,1.8131,3650.1,3650.0,4.2755]
[1754323255156,1.8131,3650.1,3650.0,4.9955]
[1754323255356,19.6158,3650.1,3650.0,4.9955]
[1754323255657,20.0656,3650.1,3650.0,4.9955]
[1754323255856,20.3781,3650.1,3650.0,3.2078]
[1754323256052,20.6951,3650.1,3650.0,4.9955]
[1754323256256,20.6941,3650.1,3650.0,4.9955]
[1754323256649,20.6941,3650.1,3650.0,4.5639]
[1754323256850,20.6941,3650.1,3650.0,3.2078]
[1754323258156,20.6941,3650.1,3650.0,3.6419]
[1754323258352,20.6941,3650.1,3650.0,4.2755]
[1754323259145,20.6941,3650.1,3650.0,4.5639]
[1754323259350,20.6941,3650.1,3650.0,4.9955]
[1754323259959,0.54787,3650.2,3650.1,1.47]
[1754323260160,21.24097,3650.2,3650.1,1.7877]
[1754323260452,1.36973,3650.0,3649.5,0.6336]
[1754323260648,2.36105,3649.6,3649.5,3.2078]
[1754323260852,21.24105,3649.6,3649.5,3.2078]
[1754323261553,2.04405,3649.6,3649.5,3.2078]
[1754323261746,21.24105,3649.6,3649.5,3.2078]
[1754323261950,20.92405,3649.6,3649.5,4.5639]
[1754323262160,21.24105,3649.6,3649.5,4.9955]
[1754323262659,19.42795,3649.6,3649.5,4.9955]
[1754323262851,20.92405,3649.6,3649.5,4.5639]
[1754323263053,21.24105,3649.6,3649.5,4.2462]
[1754323263351,20.92405,3649.6,3649.5,4.9955]
[1754323264057,0.54795,3649.7,3649.6,1.0652]
[1754323264355,0.54795,3649.7,3649.6,1.7877]
[1754323265553,0.54793,3649.8,3649.7,1.27044]
[1754323265761,19.42691,3649.9,3649.8,2.33561]
[1754323266253,0.5479,3650.0,3649.8,2.33561]
[1754323266458,0.5479,3650.0,3649.9,4.9955]
[1754323266654,19.42688,3650.1,3650.0,1.27039]
[1754323266849,0.54788,3650.1,3650.0,1.7877]
[1754323267262,20.61048,3650.1,3650.0,1.7877]
[1754323267561,20.92298,3650.1,3650.0,1.7877]
[1754323267860,20.0626,3650.1,3650.0,1.7877]
[1754323268154,1.1836,3650.8,3650.7,0.7225]
[1754323268352,21.23043391,3650.8,3650.7,1.7877]
[1754323268556,21.23042409,3650.8,3650.7,1.7877]
[1754323268760,21.45022409,3650.8,3650.7,1.7877]
[1754323268951,21.63027029,3650.8,3650.7,1.7877]
[1754323269150,21.63027029,3650.8,3650.7,0.75]
[1754323269151,21.23987,3650.8,3650.7,0.75]
[1754323269357,2.04392,3650.5,3650.4,4.9955]
[1754323269766,1.8131,3650.5,3650.4,4.9955]
[1754323269967,20.6911,3650.5,3650.4,3.2078]
[1754323271363,1.7443,3650.1,3650.0,3.2078]
[1754323271563,0.54785,3650.3,3650.2,1.0473]
[1754323271755,0.54788,3650.1,3650.0,3.2078]
[1754323271962,1.99658,3650.1,3650.0,3.2078]
[1754323272158,2.29218,3650.1,3650.0,3.2078]
[1754323272554,0.54794,3649.7,3649.5,3.2078]
[1754323272862,20.6203,3649.6,3649.5,3.2078]
[1754323273056,19.5717,3649.6,3649.5,5.0355]
[1754323273368,0.2859,3649.9,3649.8,1.8277]
[1754323273668,20.6203,3649.9,3649.8,1.3558]
[1754323273857,20.6203,3649.9,3649.8,0.7311]
[1754323274057,20.6203,3649.9,3649.5,3.9911]
[1754323274058,1.4487,3649.7,3649.6,1.59044]
[1754323274263,1.7443,3649.7,3649.6,1.59044]
[1754323274463,1.7443,3649.7,3649.6,1.90374]
[1754323274670,1.7443,3649.7,3649.6,2.37564]
[1754323274867,1.7443,3649.7,3649.6,1.8277]
[1754323275163,1.7443,3649.6,3649.5,4.79825]
[1754323275352,1.7443,3649.6,3649.5,3.2078]
[1754323276263,1.7443,3649.6,3649.5,4.2503]
[1754323276663,1.7443,3649.6,3649.5,3.2078]
[1754323277461,0.6957,3649.2,3649.1,3.7296]
[1754323277663,1.4288,3649.2,3649.1,5.0355]
[1754323277858,2.73949,3650.0,3649.5,0.5266]
[1754323277859,0.3155,3649.9,3649.5,0.5266]
[1754323278065,0.83385,3649.7,3649.6,1.8277]
[1754323278363,20.55715,3649.7,3649.6,1.8277]
[1754323278672,21.16825,3649.7,3649.6,1.8277]
[1754323278866,20.0092,3649.7,3649.6,1.8277]
[1754323279565,20.0092,3649.7,3649.0,1.3701]
[1754323279566,0.6957,3649.2,3649.1,1.8277]
[1754323280867,1.1332,3649.2,3649.1,1.8277]
[1754323281066,19.424,3649.3,3649.1,4.5636]
[1754323281067,18.876,3649.3,3649.1,4.5636]
[1754323281368,20.6203,3649.3,3649.2,1.8277]
[1754323281567,20.6203,3649.3,3649.2,1.3558]
[1754323281970,20.6203,3649.3,3649.2,1.8277]
[1754323282372,2.29231,3649.2,3649.1,3.2078]
[1754323282667,0.548,3649.3,3649.1,5.0355]
[1754323282869,20.3462,3649.3,3649.2,1.8277]
[1754323283169,20.0092,3649.3,3649.2,1.8277]
[1754323283373,1.97673,3649.8,3649.7,1.2078]
[1754323283574,22.01432728,3649.8,3649.7,0.7311]
[1754323283769,22.01432728,3649.8,3649.7,0.5218]
[1754323284267,21.332246,3649.8,3649.7,0.5218]
[1754323284575,21.332246,3649.8,3649.7,1.8277]
[1754323284576,19.5727,3649.8,3649.7,1.8277]
[1754323284770,20.0102,3649.8,3649.7,1.8277]
[1754323285171,1.4288,3649.8,3649.7,1.8277]
[1754323285371,20.0102,3649.8,3649.7,1.8277]
[1754323285872,19.5727,3649.8,3649.7,1.8277]
[1754323286673,20.0102,3649.8,3649.7,1.8277]
[1754323286872,1.4288,3649.8,3649.7,1.8277]
[1754323287077,0.6957,3650.0,3649.9,1.2838]
[1754323287382,20.6203,3650.0,3649.9,2.0671]
[1754323287577,39.449,3650.4,3650.3,0.7359]
[1754323287875,39.449,3650.4,3648.8,2.74032]
[1754323287876,59.1699498,3650.4,3649.9,3.7557]
[1754323288065,1.85468,3650.1,3650.0,0.734]
[1754323288269,0.9913,3650.0,3649.9,3.2078]
[1754323288469,1.7443,3650.0,3649.9,3.2078]
[1754323289066,0.6957,3649.6,3649.5,3.5192]
[1754323289273,20.6193,3649.6,3649.5,3.2078]
[1754323289475,20.3038,3649.6,3649.5,4.5636]